Cogmind - Beta 13 @@@ ROGUE MODE // 2024.04.15 @ 15:59:15 Player: BrainTooSmol Result: Self-destructed Performance ------------- Evolutions (2) 1000 Regions Visited (5) 1000 Robots Destroyed (87) 435 Value Destroyed (2390) 2390 Prototype IDs (2) 40 Alien Tech Used (0) 0 Bonus (0) 0 TOTAL SCORE: 4865 Bonus ------- None Cogmind --------- Core Integrity 114/550 Matter 300/300 Energy 100/100 System Corruption 1% Temperature Cool (0) Movement Core (350) Ox6 Location -8/Materials Parts ------- > --- POWER (1) -------- (None) > --- PROPULSION (4) --- (None) > --- UTILITY (4) ------ Large Storage Unit Structural Scanner > --- WEAPON (2) ------- (None) > --- INVENTORY (15) --- VTOL Module VTOL Module VTOL Module VTOL Module Hacking Suite Hacking Suite System Shield System Restoration Module Rocket Launcher Plasma Cutter Peak State ------------ > --- POWER ------------ Light Deuterium Engine > --- PROPULSION ------- Armored Treads Armored Treads Armored Wheel Armored Wheel > --- UTILITY ---------- Large Storage Unit Structural Scanner Hardened Light Armor Plating > --- WEAPON ----------- Flak Cannon Makeshift Hammer > --- INVENTORY -------- VTOL Module VTOL Module VTOL Module VTOL Module Hacking Suite System Restoration Module Flak Cannon Rocket Launcher Plasma Cutter [Rating: 26] Favorites ----------- Power Ion Engine Engine Ion Engine Propulsion Armored Wheel Treads Armored Treads Wheel Armored Wheel Utility Large Storage Unit Device Sensor Array Storage Large Storage Unit Protection Medium Armor Plating Weapon Flak Cannon Energy Gun Medium Laser Ballistic Gun Assault Rifle Ballistic Cannon Flak Cannon Launcher Grenade Launcher Special Weapon Plasma Cutter Impact Weapon Makeshift Hammer Build | -11 -10 -10 -9 -9 -8 ------- Run | Yrd Mat Min Mat Min Mat Slots Evolved 4 | . . . 2 . 2 Power . | . . . . . . Propulsion 2 | . . . 1 . 1 Utility 2 | . . . 1 . 1 Weapon . | . . . . . . Parts Attached 69 | 6 6 4 34 7 12 Power 6 | 1 . 1 2 1 1 Engine 6 | 1 . 1 2 1 1 Core . | . . . . . . Reactor . | . . . . . . Propulsion 15 | 2 4 . 5 2 2 Treads 7 | 1 1 . 3 1 1 Leg . | . . . . . . Wheel 8 | 1 3 . 2 1 1 Hover . | . . . . . . Flight . | . . . . . . Utility 12 | 1 2 . 8 . 1 Device 7 | 1 1 . 5 . . Storage 1 | . 1 . . . . Processor . | . . . . . . Hackware . | . . . . . . Protection 4 | . . . 3 . 1 Artifact . | . . . . . . Weapon 36 | 2 . 3 19 4 8 Energy Gun 2 | 1 . 1 . . . Energy Cannon . | . . . . . . Ballistic Gun 2 | 1 . 1 . . . Ballistic Cannon 17 | . . . 11 2 4 Launcher 5 | . . 1 2 2 . Special Weapon 1 | . . . 1 . . Impact Weapon 9 | . . . 5 . 4 Slashing Weapon . | . . . . . . Piercing Weapon . | . . . . . . Special Melee Weapon . | . . . . . . Unidentified Prototypes . | . . . . . . Parts Lost 25 | . 2 2 8 4 9 Power 4 | . . 1 1 1 1 Propulsion 8 | . 1 . 2 1 4 Utility 7 | . 1 1 3 1 1 Weapon 6 | . . . 2 1 3 Highest Loss Streak 8 | . 1 2 3 4 8 To Critical Strikes 1 | . . . . . 1 Average Slot Usage (%) 90 | . 92 89 93 79 79 Engine 11 | . 14 13 10 7 5 Treads 14 | . 14 14 14 19 16 Wheel 15 | . 13 14 18 9 15 Device 8 | . 7 3 10 12 9 Storage 11 | . 13 14 11 11 9 Protection 3 | . . . 5 . 6 Energy Gun 5 | . 14 14 . . . Ballistic Gun 5 | . 14 13 . . . Ballistic Cannon 10 | . . . 18 16 15 Impact Weapon 1 | . . . 1 . 2 Naked Turns . | . . . . . . Heaviest Build 47 | 8 28 29 47 39 43 Greatest Support 40 | 20 20 20 40 12 40 Greatest Overweight (x) 7 | . 2 2 3 3 7 Average Overweight (x) 1 | . 1 1 1 2 1 Largest Inventory Capacity 15 | 5 15 15 15 15 15 Average Capacity 14 | 5 14 15 15 15 15 Most Carried 15 | 5 15 15 15 13 11 Average Carried 12 | 2 11 14 13 9 8 Final Capacity 15 | 5 15 15 15 15 15 Final Carried 15 | 5 15 15 12 8 10 Class Distribution -------------------- 100% | Mutant Dominant Class ---------------- Mutant | -10/Materials Mutant | -10/Mines Mutant | -9/Materials Mutant | -9/Mines Mutant | -8/Materials Resources | -11 -10 -10 -9 -9 -8 ----------- Run | Yrd Mat Min Mat Min Mat Matter Collected 2080 | 263 179 100 714 134 690 Remotely . | . . . . . . Salvage Created 2148 | 17 374 220 792 40 705 Parts 137 | 3 22 16 67 . 29 Haulers Intercepted 1 | . 1 . . . . Recyclers Shooed 2 | . . . 1 . 1 Parts Field Recycled . | . . . . . . Retrieved Matter . | . . . . . . Parts Self-Destructed . | . . . . . . Prevented . | . . . . . . Kills | -11 -10 -10 -9 -9 -8 ------- Run | Yrd Mat Min Mat Min Mat Combat Hostiles Destroyed 86 | . 10 9 28 19 20 Melee 4 | . . . . . 4 Guns 16 | . 10 6 . . . Cannons 32 | . . . 21 3 8 AOE 26 | . . 3 7 16 . Classes Destroyed 13 | 1 4 . 5 1 2 Worker 2 | . . . 2 . . Builder 1 | . . . . . 1 Tunneler 2 | 1 . . 1 . . Hauler 1 | . 1 . . . . Recycler 1 | . . . 1 . . Operator 3 | . . . 1 . 2 Watcher 10 | . 3 . 5 . 2 Swarmer 23 | . 6 6 8 . 3 Grunt 32 | . 4 3 10 . 15 Duelist 1 | . . . 1 . . Sentry 10 | . . . 9 . 1 Hunter 1 | . . . . . 1 Assembled 19 | . . . . 19 . Best Kill Streak 19 | 1 3 3 6 19 6 Combat Bots Only 19 | . 3 3 4 19 5 Max Kills in Single Turn 7 | 1 1 2 3 7 1 Gunslinging . | . . . . . . Exploded 7 | . . 2 2 7 . Melee 1 | . . . . . 1 Uniques/NPCs Destroyed . | . . . . . . Combat | -11 -10 -10 -9 -9 -8 -------- Run | Yrd Mat Min Mat Min Mat Hostile Shots Fired 452 | . 46 29 148 45 184 Missed 118 | . 14 7 39 13 45 Damage Taken 4784 | . 330 243 1505 695 2011 Core 960 | . 104 69 186 165 436 Absorbed by Shields . | . . . . . . Regen/Repaired (Parts) 143 | . . . . . 143 Core Remaining (%) 47 | 100 . 30 . 12 . Volleys Fired 169 | 1 43 18 59 10 38 Largest 2 | 2 2 2 2 2 2 Hottest 88 | 70 70 70 88 88 88 Shots Fired 312 | 2 86 33 107 13 71 Gun 119 | 2 86 31 . . . Cannon 177 | . . . 100 6 71 Launcher 16 | . . 2 7 7 . Special . | . . . . . . Kinetic 237 | 1 43 16 100 6 71 Thermal 59 | 1 43 15 . . . Explosive 16 | . . 2 7 7 . Electromagnetic . | . . . . . . Robot Hit Streak 8 | 1 7 8 7 3 6 Robot Miss Streak 11 | . 4 3 11 5 8 Penetration Max . | . . . . . . Secondary Targets . | . . . . . . Shots Hit Robots 254 | 1 46 21 86 9 91 Core Hits 247 | 1 19 14 98 44 71 Critical Kills 2 | . . . . . 2 Critical Parts Destroyed 5 | . . . . . 5 Critical Strikes 12 | . 4 1 . . 7 Burn 5 | . 4 1 . . . Smash 7 | . . . . . 7 Melee Attacks 51 | . . . 8 . 43 Impact 51 | . . . 8 . 43 Slashing . | . . . . . . Piercing . | . . . . . . Sneak Attacks 2 | . . . . . 2 Combat Hostiles . | . . . . . . Follow-up Attacks . | . . . . . . Damage Inflicted 6407 | 11 595 410 1923 1113 2355 Guns 847 | 11 595 241 . . . Cannons 2546 | . . . 1320 145 1081 Explosions 1573 | . . 169 436 968 . Melee 1395 | . . . 121 . 1274 Ramming 46 | . . . 46 . . Kinetic 2969 | 11 281 131 1320 145 1081 Thermal 424 | . 314 110 . . . Explosive 1573 | . . 169 436 968 . Electromagnetic . | . . . . . . Impact 1395 | . . . 121 . 1274 Slashing . | . . . . . . Piercing . | . . . . . . Highest Corruption 8 | . . . . 8 1 Average Corruption 2 | . . . . 7 1 Corruption Purged . | . . . . . . Corruption Blocked . | . . . . . . Effects 4 | . . . . 1 3 Message Errors 1 | . . . . . 1 Energy Discharges 2 | . . . . 1 1 Data Loss (major) 1 | . . . . . 1 Overload Shots . | . . . . . . Overflow Damage 502 | . . 24 48 50 380 Projectiles 4 | . . . 4 . . Explosions 80 | . . 24 6 50 . Melee 418 | . . . 38 . 380 Knockbacks 109 | . . . 44 6 59 Impact 12 | . . . . . 12 Kinetic 85 | . . . 43 6 36 Secondary 12 | . . . 1 . 11 Self-Inflicted Damage 140 | . . . 33 107 . Shots 6 | . . . 3 3 . Rammed 32 | . . . 32 . . Targets Rammed 32 | . . . 32 . . Kicked . | . . . . . . Crushed . | . . . . . . Highest Temperature 313 | 9 90 131 246 52 313 Average Temperature 55 | 6 28 59 53 20 88 Received Heat Transfer 1507 | . 69 96 528 40 774 Effects 6 | . . . . . 6 Energy Bleed 2 | . . . . . 2 Interference 4 | . . . . . 4 Siege Activations . | . . . . . . Robots Corrupted . | . . . . . . Combat Hostiles . | . . . . . . Parts Fried 21 | . . . 3 . 18 Impact Corruptions 16 | . . . 2 . 14 Robots Melted . | . . . . . . Combat Hostiles . | . . . . . . Parts Melted 1 | . . 1 . . . Heat Transferred 1628 | . 1221 407 . . . Parts Sabotaged . | . . . . . . Parts Stolen . | . . . . . . Parts Stripped . | . . . . . . Power Chain Reactions . | . . . . . . Alert | -11 -10 -10 -9 -9 -8 ------- Run | Yrd Mat Min Mat Min Mat Peak Influence 338 | 5 245 187 338 59 260 Initial 58 | . 3 1 . 58 20 Average 108 | 2 75 64 148 52 111 Maximum Alert Level 1 | . 1 . 1 . 1 Low Security (%) 78 | 100 97 100 59 100 76 Level 1 21 | . 2 . 40 . 23 Level 2 . | . . . . . . Level 3 . | . . . . . . Level 4 . | . . . . . . Level 5 . | . . . . . . High Security . | . . . . . . Max Security . | . . . . . . Squads Dispatched 10 | . . . 2 . 8 Investigation 2 | . . . 1 . 1 Extermination . | . . . . . . Reinforcement 5 | . . . 1 . 4 Assault . | . . . . . . Garrison 3 | . . . . . 3 Intercept . | . . . . . . Searches Triggered . | . . . . . . Construction Impeded 1 | . . . . . 1 Haulers Reinforced . | . . . . . . Active Scanning Responses . | . . . . . . Cargo Convoy Interrupts . | . . . . . . Stealth | -11 -10 -10 -9 -9 -8 --------- Run | Yrd Mat Min Mat Min Mat Distress Signals 6 | . 1 . 3 . 2 Communications Jammed . | . . . . . . Distress Signals . | . . . . . . Times Spotted 128 | . 18 10 38 22 40 Peak Tracking Total 18 | . 4 3 5 18 9 Tactical Retreats 7 | . 2 . 1 1 3 Traps | -11 -10 -10 -9 -9 -8 ------- Run | Yrd Mat Min Mat Min Mat Traps Triggered 1 | . 1 . . . . Indirectly . | . . . . . . Trap Hack Attempts . | . . . . . . Triggered . | . . . . . . Disarmed . | . . . . . . Reprogrammed . | . . . . . . Reused . | . . . . . . Traps Extracted . | . . . . . . Installed . | . . . . . . Triggered . | . . . . . . Machines | -11 -10 -10 -9 -9 -8 ---------- Run | Yrd Mat Min Mat Min Mat Machines Disabled 1 | . . . 1 . . Max in Single Turn 1 | . . . 1 . . Machines Repaired . | . . . . . . Machines Dismantled 1 | . . . 1 . . Machines Sabotaged . | . . . . . . Overloaded Fab Kills . | . . . . . . Hacking | -11 -10 -10 -9 -9 -8 --------- Run | Yrd Mat Min Mat Min Mat Machines Accessed 28 | . 10 . 14 . 4 Terminals 21 | . 8 . 11 . 2 Fabricators . | . . . . . . Repair Stations 1 | . . . . . 1 Recycling Units 3 | . 2 . 1 . . Scanalyzers 2 | . . . 2 . . Garrison Access 1 | . . . . . 1 Total Hacks 83 | . 35 . 39 . 9 Successful 43 | . 14 . 26 . 3 Failed 40 | . 21 . 13 . 6 Catastrophic 2 | . . . 2 . . Database Lockouts . | . . . . . . Manual 43 | . 20 . 21 . 2 Terminals 63 | . 33 . 28 . 2 Fabricators . | . . . . . . Repair Stations 3 | . . . . . 3 Recycling Units 4 | . 2 . 2 . . Scanalyzers 9 | . . . 9 . . Garrison Access 4 | . . . . . 4 Terminal Hacks 22 | . 10 . 12 . . Part Schematic 4 | . 3 . 1 . . Robot Analysis 2 | . . . 2 . . Prototype ID Bank 1 | . 1 . . . . Emergency Access Points 1 | . . . 1 . . Terminal Index 1 | . . . 1 . . Repair Station Index 1 | . 1 . . . . Scanalyzer Index 1 | . 1 . . . . Alert Level 1 | . . . 1 . . Unreport Threat 2 | . . . 2 . . Locate Traps 2 | . 1 . 1 . . Dispatch Records 2 | . . . 2 . . Security Status 1 | . 1 . . . . Hauler Manifests 1 | . . . 1 . . Registered Components 1 | . 1 . . . . Zone Layout 1 | . 1 . . . . Fabricator Hacks . | . . . . . . Repair Station Hacks 2 | . . . . . 2 Scan Component 1 | . . . . . 1 Repair 1 | . . . . . 1 Recycling Unit Hacks 4 | . 2 . 2 . . Process 1 | . . . 1 . . Report Inventory 2 | . 2 . . . . Retrieve Matter 1 | . . . 1 . . Scanalyzer 8 | . . . 8 . . Insert Component 4 | . . . 4 . . Analyze 4 | . . . 4 . . Garrison Access Hacks . | . . . . . . Unauthorized Hacks 7 | . 2 . 4 . 1 Terminals 7 | . 2 . 4 . 1 Botnet 5 | . 1 . 3 . 1 Operators 2 | . 1 . 1 . . Fabricators . | . . . . . . Repair Stations . | . . . . . . Recycling Units . | . . . . . . Scanalyzers . | . . . . . . Garrison Access . | . . . . . . Data Cores Recovered . | . . . . . . Used . | . . . . . . Hacking Detections 25 | . 10 . 12 . 3 Full Trace Events 4 | . 2 . 1 . 1 Feedback Events . | . . . . . . Feedback Blocked . | . . . . . . Robot Schematics Acquired . | . . . . . . Robots Built . | . . . . . . Authchips . | . . . . . . Time . | . . . . . . Total Robot Build Rating . | . . . . . . Part Schematics Acquired 8 | . 3 . 5 . . Parts Built . | . . . . . . Authchips . | . . . . . . Time . | . . . . . . Total Part Build Rating . | . . . . . . Parts Repaired 1 | . . . . . 1 Time 38 | . . . . . 38 Parts Recycled . | . . . . . . Recycled Matter 2 | . . . 2 . . Retrieved Matter 2 | . . . 2 . . Retrieved Components . | . . . . . . Parts Scanalyzed 4 | . . . 4 . . Part Schematics Acquired 4 | . . . 4 . . Parts Damaged . | . . . . . . Bothacking | -11 -10 -10 -9 -9 -8 ------------ Run | Yrd Mat Min Mat Min Mat Used RIF Installer . | . . . . . . Robots Hacked . | . . . . . . Non-combat . | . . . . . . Combat . | . . . . . . Robot Hacks Applied . | . . . . . . Relay Couplers Released . | . . . . . . Fabnet Peak Effective % . | . . . . . . Robots Rewired . | . . . . . . Allies Hacked . | . . . . . . Hacks Repelled . | . . . . . . Allies | -11 -10 -10 -9 -9 -8 -------- Run | Yrd Mat Min Mat Min Mat Total Allies . | . . . . . . Largest Group . | . . . . . . Highest-Rated Group . | . . . . . . Highest-Rated Ally . | . . . . . . Total Orders . | . . . . . . Ally Attacks . | . . . . . . Total Damage . | . . . . . . Kills . | . . . . . . Allies Corrupted . | . . . . . . Allies Melted . | . . . . . . Intel | -11 -10 -10 -9 -9 -8 ------- Run | Yrd Mat Min Mat Min Mat Robot Analysis Total 2 | . . . 2 . . Derelict Logs Recovered 2 | . . 2 . . . Drone Launches . | . . . . . . Drone Recoveries . | . . . . . . Exploration | -11 -10 -10 -9 -9 -8 ------------- Run | Yrd Mat Min Mat Min Mat Turns Passed 6138 | 80 1471 962 2592 98 935 Spaces Moved 3334 | 43 783 591 1494 50 373 Core 5 | 2 . . . . 3 Treads 550 | 38 214 63 89 . 146 Legs . | . . . . . . Wheels 2779 | 3 569 528 1405 50 224 Hover . | . . . . . . Flight . | . . . . . . Fastest Speed 50 | 50 110 120 105 120 105 Average Speed 131 | 149 143 132 121 130 141 Slowest Speed 400 | 160 240 240 250 135 400 Overloaded Moves . | . . . . . . Propulsion Burnouts . | . . . . . . Robots Hopped . | . . . . . . Cave-ins Triggered . | . . . . . . Exploration Rate (%) 57 | 4 97 98 92 26 29 Regions Visited 5 Branch Regions 2 Pre-discovered Areas 1 | . . 1 . . . Known Exits Taken 1 | . . . 1 . . Unknown Exits Taken 4 | 1 1 1 . 1 . Scrap Searched 1 | . . 1 . . . Spaces Dug 18 | . . . 13 . 5 Terrain Destroyed 106 | . . 22 37 42 5 Melee 9 | . . . 4 . 5 Projectile . | . . . . . . AOE 97 | . . 22 33 42 . Terrain Rammed . | . . . . . . Walls Destroyed . | . . . . . . Machines Disabled . | . . . . . . Actions | -11 -10 -10 -9 -9 -8 --------- Run | Yrd Mat Min Mat Min Mat Total 4609 | 54 1049 735 2039 69 663 Wait 875 | . 200 118 363 2 192 Move 3329 | 42 782 590 1493 49 373 Hop . | . . . . . . Pick Up 35 | 5 14 3 9 . 4 Fast Attach 18 | 6 3 . 7 . 2 Attach 18 | . 1 2 8 5 2 Detach 2 | . . . 1 1 . Swap 33 | . 2 2 19 2 8 Drop 20 | . 4 2 13 . 1 Fire 169 | 1 43 18 59 10 38 Melee 51 | . . . 8 . 43 Ram . | . . . . . . Kick . | . . . . . . Crush 32 | . . . 32 . . Escape Stasis . | . . . . . . Rewire . | . . . . . . Trap . | . . . . . . Miscellaneous 27 | . . . 27 . . Route ------- -11/Scrapyard -10/Materials (discovered 4 exits: *Mat x3 / [*Min]) -10/Mines (discovered 2 exits: *Mat x2) -9/Materials (discovered 3 exits: *Mat x2 / *Min) -9/Mines -8/Materials History --------- Turn | Location | Event 8 | -11/Scrapyard | Discovered new exit (range 14) 81 | -11/Scrapyard | Entered Materials 315 | -10/Materials | Build established: Mutant 373 | -10/Materials | Discovered new exit (range 15) 976 | -10/Materials | Discovered new exit (range 8) 1087 | -10/Materials | Discovered new exit (range 16) 1408 | -10/Materials | Discovered new exit (range 16) 1552 | -10/Materials | Entered Mines 1647 | -10/Mines | Core integrity fell below 50% 1852 | -10/Mines | Discovered new exit (range 7) 1854 | -10/Mines | Learned location of 1 exit from Materials 2127 | -10/Mines | Discovered new exit (range 6) 2223 | -10/Mines | A weapon hastily lodged in a ceiling crevice suddenly fell to the ground 2514 | -10/Mines | Entered Materials 2514 | -9/Materials | Evolved 2 slots: Propulsion x1, Utility x1 2515 | -9/Materials | Identified exit to Mines 2802 | -9/Materials | Discovered new exit (range 10) 3887 | -9/Materials | Discovered new exit (range 8) 4231 | -9/Materials | Lost 3 parts (1u2w) 4276 | -9/Materials | Lost 3 parts (1p2n) 5106 | -9/Materials | Entered Mines 5107 | -9/Mines | Assembled infested the area 5123 | -9/Mines | Core integrity fell below 50% 5132 | -9/Mines | Core integrity fell below 20% 5158 | -9/Mines | Destroyed 19 combat bots 5166 | -9/Mines | Lost 4 parts (1p1n1u1w) 5190 | -9/Mines | Discovered new exit (range 8) 5204 | -9/Mines | Entered Materials 5204 | -8/Materials | Evolved 2 slots: Propulsion x1, Utility x1 5300 | -8/Materials | Repaired Arm. Treads 5771 | -8/Materials | Garrison activated, responded to threat 6123 | -8/Materials | Core integrity fell below 50% 6139 | -8/Materials | Self-destructed Last Messages --------------- 06119_ Acquired 6 matter. 06119_ ALERT: Construction progress impeded, dispatching reinforcements to local area. 06119_ K-01 Serf collects debris. 06121_ Acquired 6 matter. 06122_ K-01 Serf collects debris. 06123_ Acquired 4 matter. 06124_ R-06 Scavenger knocked back. 06125_ K-01 Serf cleans the Material Processor. 06126_ H-55 Commando knocked back. 06126_ Flak Cannon destroyed. 06128_ Acquired 9 matter. 06128_ K-01 Serf cleans the Material Processor. 06135_ Penetrated by Slug. 06135_ K-01 Serf destroyed. 06135_ Mak. Hammer destroyed. 06136_ K-01 Serf collects debris. 06136_ U-05 Engineer builds a Wall. 06138_ M-28 Smith repairs R-06 Scavenger. 06138_ R-06 Scavenger collects Wheel. Map ----- +----------------------------------------------------+ | ?????????????????????????????????????????????????? | | ?????????????????????????????????????????????????? | | ?????????????????????????????????????????????????? | | ?????????????????????????????????????????????????? | | ?????????????????????????????????????????????????? | | ?????????????????????????????????????????????????? | | ?????????????????????????????????????????????????? | | ?????????????????????????????????????????????????? | | ?????????????????????? # ??????????????????????? | | ?????????????????????? # ##????????????????????? | | ??????????????????????## ##????????????????????? | | ??????????????????????## g ????????????????????? | | ??????????????????????## ?????????????????????? | | ??????????????????????## ????????????????????? | | ??????????????????????## #T????????????????????? | | ??????????????????????## ##????????????????????? | | ??????????????????????## ##????????????????????? | | ??????????????????????## ##????????????????????? | | ??????????????????????## ##????????????????????? | | ??????????????????????## ##????????????????????? | | ??????????????????????## #### ????????? | | ??????????????????????## ##############????????? | | ??????????????????????## %#% ##????????? | | ??????????????????????## # """ ##????????? | | ??????????????????????## r%u% """"" ##????????? | | ??????????????????????## @%#% """"" ##????????? | | ??????????????????????## Yh# """"" ##????????? | | ??????????????????????## m # """ ##????????? | | ??????????????????????####r# %###???????? | | ??????????????????????#### ###########"#####?????? | | ????????????????????????## #################?????? | | ????????????????????????## ##?????## ##?????? | | ????????????????????????## ##?????## """##?????? | | ????????????????????????## ##?????## """##?????? | | ????????????????????????## ##??##### R"##?????? | | ????????????????????????## ##?## # """##?????? | | ?????????????????????????? ???## T # ######## | | ?????????????????????????? ???## #/##+########## | | ?????????????????????????? ????# # | | ?????????????????????????? ????# # | | ?????????????????????????? ????# # | | ?????????????????????????? ????# # "" """ "" | | ???????????????????????????????##/## "G """ "" | | ???????????????????????????? "" """ "" | | ???????????????????????????? | | ???????????????????????????? | | ???????????????????????????? ##### #########+## | | ??????????????????????????????????# #####% | | ??????????????????????????????????# #??## ] "Y | | ??????????????????????????????????# #??## "" | +----------------------------------------------------+ Best States ------------- Heat Dissipation 31 Energy Generation 14 Energy Capacity 265 Matter Stores 300 Matter Capacity 300 Sight Range 16 Robot Scan Range 14 Terrain Scan Density 10 Armor Coverage 225 Evasion (%) 40 Recoil Reduction 2 Item Schematics ----------------- ECM Suite | -10/Materials | Hacked Sml. Storage Unit | -10/Materials | Hacked Mining Claw | -10/Materials | Hacked VTOL Module | -9/Materials | Scanalyzed Mak. Hammer | -9/Materials | Scanalyzed Sensor Array | -9/Materials | Hacked Rocket Launcher | -9/Materials | Scanalyzed Plasma Cutter | -9/Materials | Scanalyzed Robot Schematics ------------------ None Fabricated ------------ Nothing Alien Tech Used ----------------- None Achievements -------------- None Challenges ------------ None Game ------ Seed ConcussiveLauncherAutobeam Manual? 0 Play Time 00:47:38 Cumulative 43.0 hours Start 2024.04.15 @ 15:11:49 End 2024.04.15 @ 15:59:15 Sessions 1 Manual Loads 0 Difficulty Rogue Special Mode None Game No. 29 Rogue 29 Adventurer 0 Explorer 0 Win Type - Total 1 Types 1/0/0/0/0/0/0/0/0 Lore% 42 Gallery% 33 Achievement% 35 Wizard Run 0 Options --------- Layout 0 ASCII 0 Keyboard 0 Movement Mouse Keybinds 0 Fullscreen 1 Font 18/SmallcapsGlow Map View 76x50 Zoom Use 0% Tactical HUD 1 Map Filters NONE Filters NONE Steam 1 RUN: 75eb511a-92fc-434b-aa2d-ff845451bd04